[Event "44th Chess Olympiad Open 2022"]
[Site "Chennai"]
[Date "2022.08.09"]
[Round "11.72"]
[White "Sixtus Gabriel"]
[Black "Alharthi, Ahmed Mohammed A"]
[Result "1/2-1/2"]
[ECO "B01"]
[WhiteElo "1787"]
[BlackElo "1935"]
[Annotator "TA"]
[PlyCount "130"]
[EventDate "2022.07.29"]
[EventType "team-tourn"]
[EventCountry "IND"]
[SourceTitle "playchess.com"]
[Source "ChessBase"]
[SourceQuality "1"]
[WhiteTeam "LCA"]
[BlackTeam "KSA"]
[TimeControl "40/5400+30:1800+30"]

{[%evp 9,130,28,27,41,39,27,70,14,22,17,16,10,0,15,50,49,113,99,106,112,141,136,145,145,141,142,197,183,223,248,236,201,242,202,344,122,241,105,74,0,0,-20,-8,-5,-22,-20,0,0,0,7,0,0,0,0,0,-4,11,14,0,0,37,19,27,0,27,0,0,0,0,0,0,0,0,0,0,0,0,0,0,0,0,0,0,0,0,0,0,0,0,0,0,0,0,0,0,0,0,0,0,0,0,0,0,0,0,0,0,0,0,0,0,0,0,0,0,0,0,0,0,0,0,0,0]} 1. e4 {[%emt 0:00:07]} d5 {[%emt 0:00:11]} 2. exd5 {[%emt 0:00:07]} Nf6 {[%emt 0:00:17]} 3. d4 {[%emt 0:00:26]} Qxd5 {[%emt 0:00:31]} 4. Nc3 {[%emt 0:00:27]} Qa5 {[%emt 0:00:26]} 5. Be2 {[%emt 0:00:31]} Bf5 {[%emt 0:01:17]} 6. Nf3 {[%emt 0:00:38] B01: Scandinavian Defence.} Nbd7 {[%emt 0:00:40]} 7. O-O {[%emt 0:01:35]} e6 {[%emt 0:00:36] Against d5} 8. a3 {[%emt 0:00:44]} (8. Nd2 $14) 8... c6 $11 {[%emt 0:00:38]} 9. Bf4 {[%emt 0:00:34]} h6 {[%emt 0:01:50]} 10. b4 {[%emt 0:00:51]} Qd8 {[%emt 0:01:15]} 11. Na4 {[%emt 0:01:00]} Nd5 {[%emt 0:03:56]} 12. Bg3 {[%emt 0:00:54] [#]} b5 $146 {[%emt 0:04:17] [#]} (12... Be7 $14) ({Predecessor:} 12... g5 13. c4 Nf4 14. Bxf4 gxf4 15. Nc5 Bxc5 16. dxc5 Rg8 17. Kh1 Qf6 18. Qd6 Rd8 {0-1 (66) Verduyn,P-Schrevens,J Hengelo 1997}) 13. c4 $1 $16 {[%emt 0:00:29]} bxc4 {[%emt 0:10:44]} 14. Bxc4 {[%emt 0:00:27]} N7b6 {[%emt 0:00:58]} 15. Ba6 {[%emt 0:00:32]} Bd6 {[%emt 0:03:38]} 16. Bb7 {[%emt 0:00:58][%csl LRa8,LRc6]} Rb8 {[%emt 0:01:12]} 17. Bxc6+ {[%emt 0:00:14]} Ke7 {[%emt 0:00:21]} (17... Kf8 $16 18. Rc1 Kg8 19. Nxb6 axb6) 18. Re1 {[%emt 0:03:51]} Bxg3 {[%emt 0:05:35]} 19. hxg3 {[%emt 0:00:35]} ({Don't do} 19. fxg3 Kf8 20. Rc1 Rc8 21. Nxb6 Nxb6) 19... Qd6 {[%emt 0:00:53]} 20. Rc1 {[%emt 0:11:18] [#] Black must now prevent Bxd5.} Rhc8 {[%emt 0:02:23]} 21. Nxb6 {[%emt 0:01:23]} Nxb6 {[%emt 0:02:36]} (21... axb6 $142 22. Qa4 Nf6 23. Qa7+ Kf8) 22. Bb5 $2 {[%emt 0:02:15]} (22. d5 $18 Kf8 23. Nd4) 22... Nd5 {[%emt 0:03:17]} (22... Kf8 $16) 23. Rxc8 {[%emt 0:01:07]} (23. Rc5 $18 {is more deadly.}) 23... Rxc8 {[%emt 0:00:33]} 24. Qa4 {[%emt 0:00:22]} (24. Ne5 $16 {Hoping for Qh5.} f6 25. Nc4) 24... Qb6 $11 {[%emt 0:06:48]} 25. Qa6 {[%emt 0:01:19]} Rc3 {[%emt 0:03:31]} 26. Qxb6 {[%emt 0:01:48]} (26. Ra1 {feels hotter.} f6 27. Kf1 Rc2 28. Ne1) 26... axb6 {[%emt 0:00:07]} 27. Ra1 {[%emt 0:00:18]} Nc7 {[%emt 0:06:29]} 28. Be2 {[%emt 0:01:39]} b5 {[%emt 0:02:52]} 29. Kf1 {[%emt 0:03:25]} Bd3 {[%emt 0:06:59]} 30. Ne5 {[%emt 0:06:02]} Bxe2+ {[%emt 0:02:09]} 31. Kxe2 {[%emt 0:00:29][%mdl 4096] Endgame KRN-KRN} Rc2+ {[%emt 0:01:16]} 32. Ke1 {[%emt 0:00:28]} Nd5 {[%emt 0:01:41]} 33. a4 {[%emt 0:01:03]} f6 {[%emt 0:09:14]} 34. Ng6+ {[%emt 0:04:40]} Kd6 {[%emt 0:04:10]} (34... Kf7 $5 {[%cal Rf7g6]} 35. Nf4 Nxf4 36. gxf4 bxa4 $11) 35. axb5 {[%emt 0:02:48]} Nxb4 {[%emt 0:01:01]} 36. Nf4 {[%emt 0:01:50]} Rc4 {[%emt 0:01:49] ...Nc2+ is the strong threat.} 37. Ra7 {[%emt 0:02:48]} g5 {[%emt 0:01:19] The position is equal.} 38. Ne2 {[%emt 0:00:21]} Nc2+ {[%emt 0:01:17]} 39. Kd2 {[%emt 0:00:28]} Nxd4 {[%emt 0:00:27]} 40. Kd3 {[%emt 0:00:25]} Nxb5 {[%emt 0:00:14]} 41. Rh7 {[%emt 0:31:48]} Ra4 {[%emt 0:35:42]} 42. Rxh6 {[%emt 0:00:52]} Ke5 {[%emt 0:04:05]} 43. f4+ {[%emt 0:00:19]} Kf5 {[%emt 0:01:28]} 44. g4+ $1 {[%emt 0:02:03]} Kxg4 {[%emt 0:00:05]} 45. Rxf6 {[%emt 0:00:09]} gxf4 {[%emt 0:01:02]} 46. Rxe6 {[%emt 0:00:25]} Nc7 {[%emt 0:01:09]} 47. Rd6 {[%emt 0:01:30]} Ra3+ {[%emt 0:00:00]} 48. Kd2 {[%emt 0:00:00]} Ne8 {[%emt 0:00:00]} 49. Rd4 {[%emt 0:00:31]} Ra2+ {[%emt 0:01:59]} 50. Ke1 {[%emt 0:00:00]} Ng7 {[%emt 0:00:00]} 51. Rxf4+ {[%emt 0:00:00]} Kg5 {[%emt 0:00:00]} 52. Rb4 {[%emt 0:00:00]} Nf5 {[%emt 0:00:00]} 53. Kf2 {[%emt 0:00:00]} Rc2 {[%emt 0:00:00]} 54. g4 {[%emt 0:00:00]} Nh6 {[%emt 0:00:00]} 55. Kf3 {[%emt 0:00:00]} Ra2 {[%emt 0:00:00]} 56. Rb5+ {[%emt 0:00:00]} Kg6 {[%emt 0:00:00]} 57. Nf4+ {[%emt 0:00:00]} Kf7 {[%emt 0:00:00]} 58. Rb7+ {[%emt 0:00:00]} Kf6 {[%emt 0:00:00]} 59. Nh5+ {[%emt 0:00:00]} Kg5 {[%emt 0:00:00]} 60. Rb5+ {[%emt 0:00:00]} Kh4 {[%emt 0:00:00]} 61. Nf6 {[%emt 0:00:00][%csl Gf6,Gg4][%cal Rb5h5]} Ra3+ {[%emt 0:00:00]} 62. Kf4 {[%emt 0:00:00][%csl Gf6,Gg4][%cal Rb5h5]} Ra4+ {[%emt 0:00:00]} 63. Kf3 {[%emt 0:00:00][%csl Gf6,Gg4][%cal Rb5h5]} Ra3+ {[%emt 0:00:00]} 64. Kf2 {[%emt 0:00:00][%csl Gf6,Gg4][%cal Rb5h5]} Nxg4+ {[%emt 0:00:00]} 65. Nxg4 {[%emt 0:00:00]} Kxg4 {[%emt 0:00:00] Black escapes into a draw.  Weighted Error Value: White=0.13 (very precise) /Black=0.14 (very precise)} 1/2-1/2

[Event "44th Chess Olympiad Open 2022"]
[Site "Chennai"]
[Date "2022.08.09"]
[Round "11.73"]
[White "Schadler, Martin"]
[Black "Winston Gerald, Mansfield Thomas"]
[Result "0-1"]
[ECO "B07"]
[WhiteElo "1939"]
[BlackElo "1832"]
[Annotator "TA"]
[PlyCount "75"]
[EventDate "2022.07.29"]
[EventType "team-tourn"]
[EventCountry "IND"]
[SourceTitle "playchess.com"]
[Source "ChessBase"]
[SourceQuality "1"]
[WhiteTeam "Liechtenstein"]
[BlackTeam "SLE"]
[WhiteTeamCountry "LIE"]
[TimeControl "40/5400+30:1800+30"]

{[%evp 9,75,97,131,41,36,36,104,87,85,109,84,97,94,0,85,54,141,85,137,24,194,187,245,57,57,30,38,21,21,10,10,9,12,15,40,11,145,92,93,50,45,0,0,0,0,0,0,-8,0,-8,-8,-13,-17,-20,-20,-20,-21,-27,-23,-20,-16,-31,-8,-701,-694,-669,-682,-651]} 1. d4 {[%emt 0:00:04]} d6 {[%emt 0:00:06]} 2. e4 {[%emt 0:00:13]} Nf6 {[%emt 0:00:39]} 3. Nc3 {[%emt 0:00:14]} c6 {[%emt 0:00:14]} 4. f4 {[%emt 0:00:45]} Qc7 {[%emt 0:00:12]} 5. Nf3 {[%emt 0:00:49]} Nbd7 {[%emt 0:00:36]} 6. Bd3 {[%emt 0:07:00] B07: Pirc Defence: Miscellaneous Systems.} (6. e5 $16) 6... e5 $14 {[%emt 0:00:26]} 7. O-O {[%emt 0:03:51]} b5 {[%emt 0:00:21] [#]} ({Black should play} 7... Be7 $14) 8. fxe5 $146 {[%emt 0:01:29] White is better.} (8. Ne2 {is interesting.} Rb8 9. c3 c5 10. Bd2) ({Predecessor:} 8. Ne2 Bb7 9. c3 a6 10. Ng3 c5 11. h3 h5 12. d5 c4 13. Bc2 a5 14. Qe1 {1-0 (37) Goattin,L (1774)-Sorbera,E (1720) Noale 2008}) 8... dxe5 {[%emt 0:00:11]} 9. dxe5 {[%emt 0:05:50]} Nxe5 {[%emt 0:00:19]} 10. Nxe5 {[%emt 0:00:23]} Qxe5 {[%emt 0:00:18]} 11. Kh1 {[%emt 0:05:49]} (11. Bf4 $16 Qc5+ 12. Kh1) 11... Be6 {[%emt 0:07:19]} (11... Bg4 $11 {keeps the balance.} 12. Qe1 (12. Bf4 Qxf4 13. Rxf4 Bxd1 $11) 12... Nh5) 12. Bf4 {[%emt 0:00:24]} Qc5 {[%emt 0:03:03]} (12... Qh5 $1 $14) 13. Qe1 {[%emt 0:05:35]} (13. e5 $142 Nd5 14. Nxd5 Qxd5 15. a4) 13... Qb4 {[%emt 0:04:52]} (13... Be7 $142) 14. Nd5 {[%emt 0:06:34]} Nxd5 {[%emt 0:02:44]} (14... cxd5 $11 15. Bd2 Qc5 16. Rxf6 gxf6 17. exd5 Bd6 18. dxe6 Qh5) 15. exd5 $18 {[%emt 0:01:00]} cxd5 {[%emt 0:00:09]} (15... Qxe1 $142 16. Rfxe1 (16. Raxe1 cxd5 17. Bxb5+ Ke7 $18) 16... cxd5) 16. Qxb4 $2 {[%emt 0:24:21]} (16. c3 $18 Qc5 17. Qe5) 16... Bxb4 $14 {[%emt 0:00:08]} 17. Bxb5+ {[%emt 0:00:38]} Ke7 {[%emt 0:01:28]} 18. Bd3 {[%emt 0:06:39]} Bd6 {[%emt 0:01:20]} 19. Rad1 {[%emt 0:01:00]} Bxf4 {[%emt 0:00:48]} 20. Rxf4 {[%emt 0:00:22]} Rhb8 {[%emt 0:01:08]} 21. b3 {[%emt 0:00:30]} g6 {[%emt 0:00:13]} 22. Re1 {[%emt 0:00:42]} g5 {[%emt 0:03:25]} (22... a5 $11) 23. Rd4 {[%emt 0:02:12]} (23. Rf5 $142) 23... Kd6 $16 {[%emt 0:02:28]} 24. Rd1 {[%emt 0:08:07]} Ke5 {[%emt 0:03:19] Inhibits Be4.} 25. c3 {[%emt 0:08:34]} ({Don't go for} 25. Bxh7 $2 Rh8 26. c4 Rxh7 $19) 25... Rc8 {[%emt 0:00:48]} 26. Re1+ {[%emt 0:00:09]} Kf6 {[%emt 0:00:17]} 27. Rf1+ {[%emt 0:00:26]} Kg7 {[%emt 0:00:15]} 28. Rc1 {[%emt 0:00:32]} Rc7 {[%emt 0:00:29]} 29. c4 {[%emt 0:00:51]} Rac8 {[%emt 0:00:16]} 30. h3 {[%emt 0:01:11]} h6 {[%emt 0:03:11]} 31. Kg1 {[%emt 0:03:54]} a5 {[%emt 0:01:41]} 32. h4 {[%emt 0:01:28]} Kf6 {[%emt 0:03:49] [#] Hoping for ...Ke5.} 33. Kf2 {[%emt 0:00:37]} Ke5 {[%emt 0:00:12]} 34. Ke3 {[%emt 0:00:25]} f5 $36 {[%emt 0:00:45][%mdl 2048] aiming for ...f4+. Black fights for an advantage.} 35. g3 {[%emt 0:01:22] Inhibits f4+.} Rg8 {[%emt 0:05:33]} 36. Rg1 $2 {[%emt 0:02:32][%mdl 8192]} (36. Re1 $11) 36... f4+ $1 $19 {[%emt 0:00:35]} 37. Rxf4 {[%emt 0:00:10]} gxf4+ {[%emt 0:00:29]} 38. gxf4+ {[%emt 0:00:06] Never resign too early!  Weighted Error Value: White=0.65/Black=0.31} 0-1

[Event "44th Chess Olympiad Open 2022"]
[Site "Chennai"]
[Date "2022.08.09"]
[Round "11.73"]
[White "Frick, Renato"]
[Black "Adeshole Beckley, Brian"]
[Result "1-0"]
[ECO "C11"]
[WhiteElo "1900"]
[BlackElo "1590"]
[Annotator "TA"]
[PlyCount "49"]
[EventDate "2022.07.29"]
[EventType "team-tourn"]
[EventCountry "IND"]
[SourceTitle "playchess.com"]
[Source "ChessBase"]
[SourceQuality "1"]
[WhiteTeam "Liechtenstein"]
[BlackTeam "SLE"]
[WhiteTeamCountry "LIE"]
[TimeControl "40/5400+30:1800+30"]

{[%evp 20,49,11,13,14,0,0,-27,-10,-40,0,-46,-51,-45,-60,-68,-67,-56,-49,-35,0,0,0,0,0,-254,0,0,29996,29997,29997,29998]} 1. e4 {[%emt 0:00:04][%cal Be2e4,Be4e5][%mdl 32]} e6 {[%emt 0:00:18]} 2. d4 {[%emt 0:00:10]} d5 {[%emt 0:00:14]} 3. Nc3 {[%emt 0:00:08]} Nf6 {[%emt 0:00:19]} 4. e5 {[%emt 0:00:18]} Nfd7 {[%emt 0:00:08]} 5. f4 {[%emt 0:00:07]} c5 {[%emt 0:00:31]} 6. Nf3 {[%emt 0:00:11]} Nc6 {[%emt 0:00:12]} 7. Be3 {[%emt 0:00:07]} cxd4 {[%emt 0:00:10]} 8. Nxd4 {[%emt 0:00:09]} Bc5 {[%emt 0:00:17]} 9. Qd2 {[%emt 0:03:41]} O-O {[%emt 0:02:19]} 10. O-O-O {[%emt 0:04:36]} Nxd4 {[%emt 0:00:49]} 11. Bxd4 {[%emt 0:00:08]} a6 {[%emt 0:00:38][%cal Ba7a6,Ba6a5,Ba5a4][%mdl 32] C11: French: Classical System: 4 e5 and 4 Bg5 dxe4.} 12. Bxc5 {[%emt 0:08:36]} Nxc5 {[%emt 0:00:08]} 13. Bd3 {[%emt 0:00:11]} b5 {[%emt 0:00:22] Black has an edge.} 14. Qf2 {[%emt 0:07:30]} Qb6 {[%emt 0:00:45]} 15. Kb1 {[%emt 0:00:08]} (15. Qh4 $1 $11 h6 16. Kb1) 15... b4 $15 {[%emt 0:00:20]} 16. Ne2 {[%emt 0:00:08]} a5 {[%emt 0:01:59] [#]} 17. g4 $146 {[%emt 0:10:11]} ({Predecessor:} 17. Qh4 h6 18. Ng3 Nxd3 19. Rxd3 Ba6 20. Rf3 Rfc8 21. Nh5 Qc5 22. Rc1 Be2 23. Nf6+ gxf6 {½-½ (57) Timman,J (2561)-Libiszewski,F (2468) France 2008}) 17... Ba6 {[%emt 0:00:11]} 18. f5 {[%emt 0:02:19]} Rfb8 {[%emt 0:00:38][%cal Ob4b3] [#] White must now prevent ...b3!} 19. Nf4 {[%emt 0:10:35]} a4 {[%emt 0:01:32]} 20. fxe6 {[%emt 0:02:04]} fxe6 {[%emt 0:07:19]} 21. Bxh7+ $1 {[%emt 0:03:46]} Kxh7 {[%emt 0:00:07]} 22. Qh4+ {[%emt 0:00:12]} Kg8 {[%emt 0:00:04]} 23. Ng6 {[%emt 0:00:13][%cal Oh1f1] Rhf1! would kill now.} b3 $2 {[%emt 0:03:20][%mdl 8192]} (23... Ne4 $11 24. Rhf1 Bxf1 25. Qh8+ Kf7 26. Rxf1+ Nf2) 24. Qh8+ {[%emt 0:00:49]} Kf7 {[%emt 0:00:07] [#]} 25. Rhf1+ $1 {[%emt 0:00:10][%mdl 512] Weighted Error Value: White=0.07 (flawless) /Black=0.53} 1-0

[Event "44th Chess Olympiad Open 2022"]
[Site "Chennai"]
[Date "2022.08.09"]
[Round "11.73"]
[White "Kamara, Ansumana"]
[Black "Mannhart, Marcel"]
[Result "1/2-1/2"]
[ECO "B75"]
[WhiteElo "1896"]
[BlackElo "2110"]
[Annotator "NA RC"]
[PlyCount "116"]
[EventDate "2022.07.29"]
[EventType "team-tourn"]
[EventCountry "IND"]
[SourceTitle "playchess.com"]
[Source "ChessBase"]
[SourceQuality "1"]
[WhiteTeam "SLE"]
[BlackTeam "Liechtenstein"]
[BlackTeamCountry "LIE"]
[TimeControl "40/5400+30:1800+30"]

1. e4 {[%emt 0:00:43]} c5 {[%emt 0:00:02]} 2. Nf3 {[%emt 0:00:04]} g6 {[%emt 0:00:10]} 3. d4 {[%emt 0:00:14]} cxd4 {[%emt 0:00:08]} 4. Nxd4 {[%emt 0:00:07]} Bg7 {[%emt 0:00:06]} 5. Be3 {[%emt 0:00:22]} Nc6 {[%emt 0:00:21]} 6. Nc3 {[%emt 0:00:22]} Nf6 {[%emt 0:00:30]} 7. f3 {[%emt 0:00:10]} d6 {[%emt 0:05:39]} 8. Qd2 {[%emt 0:00:14]} h5 {[%emt 0:09:37]} 9. O-O-O {[%emt 0:00:41]} Bd7 {[%emt 0:00:23]} 10. Kb1 {[%emt 0:00:16]} Qa5 {[%emt 0:06:55]} 11. Nb3 {[%emt 0:01:44]} Qd8 {[%emt 0:00:47]} 12. g3 {[%emt 0:00:20]} Qc8 {[%emt 0:06:06]} 13. h3 {[%emt 0:00:20]} Ne5 {[%emt 0:00:20]} 14. Qe2 {[%emt 0:01:06]} Be6 {[%emt 0:14:21]} 15. Nd5 {[%emt 0:05:21]} Bxd5 {[%emt 0:07:07]} 16. exd5 {[%emt 0:00:27]} Qc7 {[%emt 0:00:49]} 17. f4 {[%emt 0:01:11]} Ned7 {[%emt 0:00:23]} 18. Qd3 {[%emt 0:01:18]} Rc8 {[%emt 0:05:22]} 19. c4 {[%emt 0:00:40]} a5 {[%emt 0:00:31]} 20. Nd4 {[%emt 0:04:00]} Nc5 {[%emt 0:01:10]} 21. Qc2 {[%emt 0:00:16]} Nfe4 {[%emt 0:03:32]} 22. Nb5 {[%emt 0:06:31]} Qd7 {[%emt 0:00:43]} 23. Rg1 {[%emt 0:00:47]} f5 {[%emt 0:03:26]} 24. g4 {[%emt 0:00:57]} hxg4 {[%emt 0:01:10]} 25. hxg4 {[%emt 0:00:08]} Kf7 {[%emt 0:00:54]} 26. gxf5 {[%emt 0:01:27]} Qxf5 {[%emt 0:00:37]} 27. Bxc5 {[%emt 0:06:11]} Nxc5 {[%emt 0:04:04]} 28. Qxf5+ {[%emt 0:00:29]} gxf5 {[%emt 0:00:01]} 29. Rg5 {[%emt 0:00:14]} Bf6 {[%emt 0:00:53]} 30. Rxf5 {[%emt 0:02:16]} Rh2 {[%emt 0:01:00]} 31. Nd4 {[%emt 0:03:33]} Ne4 {[%emt 0:00:00]} 32. Bd3 {[%emt 0:04:28]} Nf2 {[%emt 0:05:13]} 33. Rd2 {[%emt 0:01:56]} Rh1+ {[%emt 0:00:20]} 34. Kc2 {[%emt 0:00:19]} Nxd3 {[%emt 0:00:21]} 35. Kxd3 {[%emt 0:03:39]} Rg8 {[%emt 0:00:01]} 36. Re2 {[%emt 0:05:30]} Rg3+ {[%emt 0:07:05]} 37. Kc2 {[%emt 0:03:05]} Kg6 {[%emt 0:06:02]} 38. Rxf6+ {[%emt 0:03:12]} Kxf6 {[%emt 0:01:07]} 39. Re6+ {[%emt 0:00:40]} Kf7 {[%emt 0:00:12]} 40. Rxe7+ {[%emt 0:01:18]} Kxe7 {[%emt 0:01:06]} 41. Nf5+ {[%emt 0:30:07]} Kd7 {[%emt 0:30:10]} 42. Nxg3 {[%emt 0:00:36]} Rh2+ {[%emt 0:00:01]} 43. Kc1 {[%emt 0:01:03]} Rf2 {[%emt 0:03:42]} 44. Ne4 {[%emt 0:02:08]} Rxf4 {[%emt 0:00:54]} 45. Nd2 {[%emt 0:00:10]} Kc7 {[%emt 0:04:05]} 46. Kc2 {[%emt 0:00:09]} Rh4 {[%emt 0:00:00]} 47. a4 {[%emt 0:00:00]} Kb6 {[%emt 0:00:00]} 48. Kc3 {[%emt 0:00:00]} Kc5 {[%emt 0:00:00]} 49. Nb3+ {[%emt 0:00:00]} Kb6 {[%emt 0:00:00]} 50. Nc1 {[%emt 0:00:00]} Kc5 {[%emt 0:00:00]} 51. Nd3+ {[%emt 0:00:00]} Kb6 {[%emt 0:00:00]} 52. Nc1 {[%emt 0:00:00]} Rh2 {[%emt 0:00:00]} 53. Nd3 {[%emt 0:00:00]} Rh3 {[%emt 0:00:00]} 54. Kc2 {[%emt 0:00:00]} Re3 {[%emt 0:00:00]} 55. Kd2 {[%emt 0:00:00]} Rf3 {[%emt 0:00:00]} 56. Kc3 {[%emt 0:00:00]} Rh3 {[%emt 0:00:00]} 57. Kd4 {[%emt 0:00:00]} Rh4+ {[%emt 0:00:00]} 58. Kc3 {[%emt 0:00:00]} Rh3 {[%emt 0:00:00]} 1/2-1/2

[Event "44th Chess Olympiad Open 2022"]
[Site "Chennai"]
[Date "2022.08.09"]
[Round "11.73"]
[White "Lwebuga, Ronald"]
[Black "Jelic, Dejan"]
[Result "1-0"]
[ECO "A53"]
[WhiteElo "1818"]
[BlackElo "1905"]
[Annotator "NA RC"]
[PlyCount "115"]
[EventDate "2022.07.29"]
[EventType "team-tourn"]
[EventCountry "IND"]
[SourceTitle "playchess.com"]
[Source "ChessBase"]
[SourceQuality "1"]
[WhiteTeam "SLE"]
[BlackTeam "Liechtenstein"]
[BlackTeamCountry "LIE"]
[TimeControl "40/5400+30:1800+30"]

1. d4 {[%emt 0:00:02]} Nf6 {[%emt 0:00:10]} 2. c4 {[%emt 0:00:08]} c6 {[%emt 0:00:17]} 3. Nc3 {[%emt 0:00:10]} d6 {[%emt 0:00:16]} 4. e4 {[%emt 0:00:10]} Qa5 {[%emt 0:00:08]} 5. Bd2 {[%emt 0:00:15]} Qc7 {[%emt 0:00:08]} 6. Nf3 {[%emt 0:00:30]} e5 {[%emt 0:00:14]} 7. Be2 {[%emt 0:01:00]} Bg4 {[%emt 0:00:47]} 8. d5 {[%emt 0:00:58]} Nbd7 {[%emt 0:00:27]} 9. b4 {[%emt 0:01:36]} Be7 {[%emt 0:00:47]} 10. Qc2 {[%emt 0:00:33]} O-O {[%emt 0:00:32]} 11. O-O {[%emt 0:00:38]} Rfc8 {[%emt 0:06:24]} 12. Rfc1 {[%emt 0:02:27]} h6 {[%emt 0:07:08]} 13. h3 {[%emt 0:03:22]} Bh5 {[%emt 0:00:10]} 14. Rab1 {[%emt 0:00:49]} Nb6 {[%emt 0:01:28]} 15. Be3 {[%emt 0:04:32]} cxd5 {[%emt 0:02:14]} 16. Bxb6 {[%emt 0:00:43]} axb6 {[%emt 0:01:29]} 17. cxd5 {[%emt 0:05:03]} Nxe4 {[%emt 0:08:44]} 18. Rb3 {[%emt 0:07:22]} Nxc3 {[%emt 0:09:07]} 19. Rxc3 {[%emt 0:00:38]} Qxc3 {[%emt 0:00:19]} 20. Qxc3 {[%emt 0:00:13]} Rxc3 {[%emt 0:00:05]} 21. Rxc3 {[%emt 0:00:09]} Rxa2 {[%emt 0:00:52]} 22. Rc8+ {[%emt 0:04:09]} Bf8 {[%emt 0:01:01]} 23. Bd3 {[%emt 0:04:29]} Ra1+ {[%emt 0:02:43]} 24. Kh2 {[%emt 0:00:45]} Ra3 {[%emt 0:00:37]} 25. Ne1 {[%emt 0:07:04]} Ra1 {[%emt 0:01:51]} 26. Nc2 {[%emt 0:04:44]} Rd1 {[%emt 0:02:43]} 27. Be4 {[%emt 0:01:41]} Rc1 {[%emt 0:06:50]} 28. g4 {[%emt 0:01:42]} Bg6 {[%emt 0:00:13]} 29. Bxg6 {[%emt 0:00:29]} fxg6 {[%emt 0:00:05]} 30. Rc4 {[%emt 0:00:55]} b5 {[%emt 0:01:02]} 31. Rc7 {[%emt 0:00:33]} Rd1 {[%emt 0:01:20]} 32. Ne3 {[%emt 0:00:59]} Rd4 {[%emt 0:00:30]} 33. Rxb7 {[%emt 0:00:53]} Rxb4 {[%emt 0:00:09]} 34. Ng2 {[%emt 0:01:21]} Rb1 {[%emt 0:01:38]} 35. Nh4 {[%emt 0:01:17]} b4 {[%emt 0:01:49]} 36. Nxg6 {[%emt 0:00:18]} b3 {[%emt 0:00:50]} 37. Rb8 {[%emt 0:00:12]} Kf7 {[%emt 0:00:24]} 38. Nxf8 {[%emt 0:00:32]} b2 {[%emt 0:00:36]} 39. Nd7 {[%emt 0:01:08]} Ke7 {[%emt 0:00:40]} 40. Rb7 {[%emt 0:09:56]} Kd8 {[%emt 0:04:00]} 41. Nf8 {[%emt 0:32:02]} Rd1 {[%emt 0:30:17]} 42. Rxb2 {[%emt 0:00:58]} Rxd5 {[%emt 0:00:08]} 43. Ne6+ {[%emt 0:00:21]} Ke7 {[%emt 0:00:19]} 44. Nxg7 {[%emt 0:00:03]} Kf6 {[%emt 0:00:24]} 45. Nf5 {[%emt 0:00:43]} h5 {[%emt 0:01:10]} 46. Rb6 {[%emt 0:02:40]} Kg5 {[%emt 0:00:34]} 47. Rxd6 {[%emt 0:04:50]} Rxd6 {[%emt 0:00:25]} 48. Nxd6 {[%emt 0:00:10]} hxg4 {[%emt 0:00:05]} 49. hxg4 {[%emt 0:03:10]} Kxg4 {[%emt 0:00:09]} 50. Kg2 {[%emt 0:00:15]} Kf4 {[%emt 0:00:27]} 51. f3 {[%emt 0:00:39]} Kg5 {[%emt 0:00:47]} 52. Kf2 {[%emt 0:00:23]} Kf6 {[%emt 0:00:23]} 53. Ke3 {[%emt 0:00:10]} Ke6 {[%emt 0:00:14]} 54. Nb5 {[%emt 0:00:54]} Kf5 {[%emt 0:00:27]} 55. Nc3 {[%emt 0:00:23]} Kf6 {[%emt 0:00:23]} 56. Ke4 {[%emt 0:00:12]} Ke6 {[%emt 0:00:07]} 57. Nd1 {[%emt 0:00:33]} Kf6 {[%emt 0:00:09]} 58. Ne3 {[%emt 0:00:08]} 1-0